bitfinex/quotes_BTCUSD_20240719
["timestamp","ask_amount","ask_price","bid_price","bid_amount"]
[1721406753997,0.106,66487.0,66477.0,0.300855]
[1721406753998,0.07938059,66480.0,66477.0,0.300855]
[1721406754198,0.07938059,66479.0,66478.0,0.150425]
[1721406754408,0.07938059,66486.0,66478.0,0.150425]
[1721406754615,0.12425172,66485.0,66478.0,0.150425]
[1721406754835,0.17938059,66484.0,66475.0,0.300862]
[1721406755039,0.02064353,66485.0,66477.0,0.150427]
[1721406755040,0.07938059,66483.0,66477.0,0.150427]
[1721406755285,0.07938059,66482.0,66472.0,0.009196]
[1721406755583,0.07938059,66481.0,66472.0,0.009196]
[1721406755993,0.178394,66480.0,66472.0,0.159633]
[1721406756141,0.07938059,66479.0,66473.0,0.150436]
[1721406756347,0.07938059,66479.0,66474.0,0.150433]
[1721406756649,0.07938059,66479.0,66472.0,0.009196]
[1721406756875,0.07938059,66479.0,66473.0,0.150436]
[1721406757265,0.07938059,66479.0,66472.0,0.009196]
[1721406757266,0.1361,66478.0,66472.0,0.009196]
[1721406757463,0.1361,66478.0,66465.0,0.15965]
[1721406757464,0.21125895,66477.0,66465.0,0.15965]
[1721406757673,0.07938059,66476.0,66466.0,0.00300898]
[1721406757873,0.002794,66475.0,66474.0,0.150434]
[1721406758137,0.07938059,66475.0,66474.0,0.150434]
[1721406758309,0.07938059,66476.0,66473.0,0.150436]
[1721406758512,0.1,66479.0,66472.0,0.300878]
[1721406758832,0.01324415,66481.0,66480.0,0.300842]
[1721406758966,0.09265094,66481.0,66480.0,0.752105]
[1721406759179,0.1656,66494.0,66493.0,0.451174]
[1721406759368,0.07940422,66494.0,66493.0,0.751957]
[1721406759599,0.07940422,66494.0,66481.0,0.07717479]
[1721406759600,0.002794,66501.0,66492.0,0.2367]
[1721406759800,0.07935631,66500.0,66496.0,0.07717479]
[1721406760006,0.1656,66510.0,66500.0,0.150375]
[1721406760007,0.07935631,66501.0,66500.0,0.150375]
[1721406760201,0.1656,66510.0,66503.0,0.150367]
[1721406760373,0.10897363,66509.0,66503.0,0.150367]
[1721406760580,0.1656,66510.0,66503.0,0.150368]
[1721406760581,0.10897363,66508.0,66503.0,0.150368]
[1721406760783,0.10897363,66507.0,66502.0,0.15037]
[1721406761005,0.10897363,66506.0,66502.0,0.15037]
[1721406761206,0.0793496,66505.0,66502.0,0.15037]
[1721406761412,0.0793496,66504.0,66503.0,0.150368]
[1721406761584,0.17896069,66510.0,66504.0,0.150366]
[1721406761789,0.10231844,66509.0,66504.0,0.150366]
[1721406762017,0.07930894,66508.0,66504.0,0.150366]
[1721406762254,0.17896069,66510.0,66504.0,0.150366]
[1721406762255,0.005,66506.0,66504.0,0.150366]
[1721406762460,0.07930894,66505.0,66504.0,0.150366]
[1721406762737,0.07930894,66505.0,66504.0,0.751832]
[1721406763112,0.07930894,66505.0,66504.0,1.20694674]
[1721406763411,0.005,66506.0,66505.0,0.751822]
[1721406763614,0.005,66506.0,66505.0,1.30693274]
[1721406763783,0.005,66506.0,66505.0,1.32953274]
[1721406763981,0.005,66506.0,66505.0,1.63026174]
[1721406764145,0.005,66506.0,66505.0,1.32953274]
[1721406764780,0.01336069,66510.0,66509.0,1.052488]
[1721406765000,0.46304871,66526.0,66516.0,0.150339]
[1721406765199,0.1764,66535.0,66516.0,0.150339]
[1721406765200,0.002794,66534.0,66516.0,0.451018]
[1721406765400,0.002794,66534.0,66516.0,1.172776]
[1721406765813,0.1,66533.0,66516.0,1.172776]
[1721406765987,0.19452302,66517.0,66516.0,1.172776]
[1721406766401,0.19552302,66517.0,66516.0,1.173776]
[1721406766605,0.19552302,66517.0,66516.0,1.053376]
[1721406766807,0.19452302,66517.0,66516.0,0.451018]
[1721406767049,0.19452302,66517.0,66516.0,0.150339]
[1721406767257,0.19452302,66517.0,66516.0,0.451018]
[1721406767478,0.19552302,66517.0,66516.0,0.453018]
[1721406767677,0.19552302,66517.0,66516.0,0.753697]
[1721406768230,0.19452302,66517.0,66516.0,0.751697]
[1721406768461,0.19552302,66517.0,66516.0,0.753697]
[1721406768612,0.19652302,66517.0,66516.0,1.20975774]
[1721406768824,0.19552302,66517.0,66516.0,1.20775774]
[1721406769227,0.19452302,66517.0,66516.0,1.20675774]
[1721406769429,0.19552302,66517.0,66516.0,1.20775774]
[1721406769631,0.19552302,66517.0,66516.0,1.50843674]
[1721406769830,0.19552302,66517.0,66516.0,1.80803674]
[1721406770006,0.19552302,66517.0,66516.0,1.50735774]
[1721406770212,0.19452302,66517.0,66516.0,1.50635774]
[1721406770409,0.19552302,66517.0,66516.0,1.50835774]
[1721406770848,0.19552302,66517.0,66516.0,0.002]
[1721406771050,0.19552302,66517.0,66516.0,0.150339]
[1721406771248,0.19552302,66517.0,66516.0,0.451018]
[1721406771431,0.19552302,66517.0,66516.0,0.751697]
[1721406771636,0.19552302,66517.0,66516.0,0.752697]
[1721406771637,0.19652302,66517.0,66516.0,0.752697]
[1721406772090,0.19552302,66517.0,66516.0,1.20775774]
[1721406772292,0.19452302,66517.0,66516.0,1.50743674]
[1721406772470,0.19452302,66517.0,66516.0,1.79663674]
[1721406773431,0.19452302,66517.0,66516.0,1.79563674]
[1721406773564,0.19552302,66517.0,66516.0,1.79663674]
[1721406774057,0.182,66517.0,66516.0,1.79663674]
[1721406774432,0.183,66517.0,66516.0,1.79663674]
[1721406775179,0.183,66517.0,66516.0,1.79563674]
[1721406775180,0.182,66517.0,66516.0,1.79563674]
[1721406775381,0.182,66517.0,66516.0,1.80163674]
[1721406775382,0.183,66517.0,66516.0,1.80163674]
[1721406775858,0.183,66517.0,66516.0,1.50095774]
[1721406776176,0.18384,66517.0,66516.0,1.50095774]
[1721406776936,0.18284,66517.0,66516.0,1.50095774]
[1721406777368,0.18384,66517.0,66516.0,1.50695774]
[1721406777723,0.18284,66517.0,66516.0,1.80163674]
[1721406778001,0.18284,66517.0,66516.0,1.50095774]
[1721406778324,0.18384,66517.0,66516.0,1.51295774]
[1721406778875,0.18284,66517.0,66516.0,1.80763674]
[1721406779273,0.18384,66517.0,66516.0,1.81263674]
[1721406779475,0.18284,66517.0,66516.0,1.80763674]
[1721406779932,0.18384,66517.0,66516.0,1.81163674]
[1721406780149,0.18384,66517.0,66516.0,1.51095774]
[1721406781140,0.18384,66517.0,66516.0,1.81163674]
[1721406781346,0.18384,66517.0,66516.0,1.51095774]
[1721406781710,0.18384,66517.0,66516.0,1.88463674]
[1721406782340,0.00084,66536.0,66516.0,1.88463674]
[1721406782341,0.00084,66536.0,66524.0,0.05]
[1721406782545,0.00084,66536.0,66535.0,1.052075]
[1721406782749,0.00084,66536.0,66535.0,1.20645674]
[1721406782952,0.00084,66536.0,66535.0,1.50704974]
[1721406783163,0.00084,66536.0,66535.0,1.20645674]
[1721406783164,0.0141951,66536.0,66535.0,1.20645674]
[1721406783378,0.00084,66536.0,66535.0,0.150296]
[1721406783576,0.01184,66536.0,66535.0,0.450889]
[1721406783803,0.00084,66536.0,66535.0,0.150296]
[1721406784148,0.01084,66536.0,66535.0,0.150296]
[1721406784564,0.00084,66536.0,66535.0,0.450889]
[1721406785462,0.00084,66536.0,66535.0,0.454889]
[1721406786460,0.00084,66536.0,66535.0,0.455889]
[1721406787058,0.00084,66536.0,66535.0,0.43751385]
[1721406787259,0.00084,66536.0,66530.0,0.300614]
[1721406787458,0.00084,66536.0,66532.0,0.150303]
[1721406788240,0.00084,66536.0,66533.0,0.150301]
[1721406788467,0.00084,66536.0,66535.0,0.150296]
[1721406788667,0.00084,66536.0,66535.0,0.450889]
[1721406788870,0.00084,66536.0,66535.0,0.751482]
[1721406789077,0.00084,66536.0,66535.0,1.20645674]
[1721406789681,0.00084,66536.0,66535.0,1.20945674]
[1721406791073,0.00084,66536.0,66535.0,1.20645674]
[1721406791273,0.00084,66536.0,66535.0,0.756482]
[1721406791473,0.00084,66536.0,66535.0,0.455889]
[1721406791876,0.00084,66536.0,66535.0,0.756482]
[1721406792605,0.01379934,66536.0,66535.0,0.009]
[1721406792806,0.01379934,66536.0,66535.0,0.005]
[1721406792807,0.11994,66536.0,66535.0,0.005]
[1721406793208,0.19905791,66536.0,66535.0,0.002]
[1721406793386,0.1524,66535.0,66511.0,0.300699]
[1721406793632,0.1524,66535.0,66524.0,0.300639]
[1721406793633,0.08191191,66534.0,66524.0,0.300639]
[1721406793830,0.08191191,66534.0,66525.0,0.10378701]
[1721406793831,0.07911791,66533.0,66525.0,0.10378701]
[1721406794060,0.07911791,66533.0,66508.0,0.300712]
[1721406794061,0.2715,66531.0,66508.0,0.300712]
[1721406794231,0.2715,66531.0,66516.0,0.150339]
[1721406794232,0.11051181,66530.0,66516.0,0.150339]
[1721406794497,0.20771982,66529.0,66516.0,0.150339]
[1721406794688,0.11052031,66528.0,66514.0,0.300686]
[1721406794924,0.17911791,66527.0,66517.0,0.150336]
[1721406795124,0.08191191,66526.0,66517.0,0.150336]
[1721406795324,0.08191191,66526.0,66516.0,0.300679]
[1721406795325,0.07911791,66525.0,66510.0,0.001]
[1721406795479,0.1524,66523.0,66502.0,0.300739]
[1721406795680,0.1191,66524.0,66503.0,0.300738]
[1721406795681,0.1486,66521.0,66503.0,0.300738]
[1721406795883,0.1178,66519.0,66511.0,0.001]
[1721406796142,0.18191191,66518.0,66506.0,0.150361]
[1721406796429,0.18191191,66518.0,66510.0,0.001]
[1721406796430,0.07911791,66517.0,66510.0,0.001]
[1721406796746,0.07911791,66517.0,66509.0,0.150353]
[1721406796747,0.002794,66516.0,66509.0,0.150353]
[1721406796955,0.07911791,66515.0,66513.0,0.150345]
[1721406797247,0.002794,66514.0,66513.0,0.150345]
[1721406797441,0.07911791,66514.0,66512.0,0.00300678]
[1721406797613,0.07911791,66520.0,66519.0,0.150332]
[1721406797824,0.011,66517.0,66516.0,0.150339]
[1721406798027,0.011,66517.0,66516.0,0.751697]
[1721406798405,0.08501096,66517.0,66516.0,0.751697]
[1721406799032,0.07901096,66517.0,66511.0,0.15035]
[1721406799231,0.07901096,66516.0,66513.0,0.150344]
[1721406799413,0.1,66528.0,66514.0,0.150344]
[1721406799414,0.004,66515.0,66514.0,0.150344]
[1721406799611,0.08301096,66515.0,66514.0,0.451032]
[1721406799808,0.07901096,66515.0,66514.0,0.75172]
[1721406800008,0.11326579,66528.0,66527.0,0.150314]
[1721406800253,0.1922754,66528.0,66524.0,0.300639]
[1721406800565,0.07900961,66527.0,66525.0,0.150318]
[1721406801153,0.07900961,66527.0,66521.0,0.300654]
[1721406801394,0.07900961,66527.0,66522.0,0.150325]
[1721406801954,0.07900961,66527.0,66521.0,0.300654]
[1721406802368,0.07900961,66527.0,66515.0,1.2489]
[1721406802573,0.002794,66526.0,66516.0,0.300678]
[1721406802773,0.07900961,66525.0,66517.0,0.150336]
[1721406802972,0.07900961,66525.0,66517.0,0.150335]
[1721406803197,0.2849,66523.0,66501.0,0.300746]
[1721406803397,0.1603,66517.0,66494.0,0.300778]
[1721406803648,0.1603,66517.0,66496.0,0.300769]
[1721406803649,0.10961432,66516.0,66496.0,0.300769]
[1721406803793,0.07900961,66515.0,66502.0,0.15037]
[1721406803994,0.08180361,66515.0,66503.0,0.150369]
[1721406804221,0.07900961,66514.0,66501.0,0.150371]
[1721406804382,0.07900961,66514.0,66501.0,0.001]
[1721406804792,0.1493,66513.0,66500.0,0.30075]
[1721406805001,0.07900961,66512.0,66501.0,0.150373]
[1721406805199,0.07900961,66512.0,66500.0,0.150374]
[1721406805443,0.07882867,66512.0,66500.0,0.150374]
[1721406805646,0.07882867,66512.0,66502.0,0.15037]
[1721406806048,0.07882867,66512.0,66499.0,0.300752]
[1721406806255,0.07882867,66512.0,66492.0,0.300786]
[1721406806601,0.07882867,66512.0,66502.0,0.150371]
[1721406806806,0.07882867,66512.0,66501.0,0.151373]
[1721406806981,0.09282867,66512.0,66501.0,0.150373]
[1721406807319,0.07882867,66511.0,66503.0,0.150367]
[1721406807561,0.07882867,66510.0,66507.0,0.150359]
[1721406807780,0.07882867,66511.0,66507.0,0.150359]
[1721406807990,0.014,66512.0,66504.0,0.300732]
[1721406807991,0.07882867,66510.0,66504.0,0.300732]
[1721406808196,0.1493,66513.0,66500.0,0.150374]
[1721406808197,0.07882867,66511.0,66500.0,0.150374]
[1721406808416,0.16247778,66513.0,66501.0,0.001]
[1721406808417,0.07882867,66510.0,66501.0,0.001]
[1721406808686,0.07882867,66511.0,66501.0,0.151373]
[1721406808899,0.07882867,66510.0,66501.0,0.151373]
[1721406809105,0.07882867,66511.0,66501.0,0.151373]
[1721406809299,0.07882867,66510.0,66503.0,0.300737]
[1721406809503,0.07882867,66511.0,66505.0,0.150363]
[1721406811929,0.07901268,66509.0,66503.0,0.150368]
[1721406812183,0.008,66511.0,66505.0,0.150364]
[1721406812184,0.07901268,66508.0,66505.0,0.150364]
[1721406812363,0.008,66511.0,66493.0,0.1249]
[1721406812364,0.07900938,66510.0,66495.0,0.300773]
[1721406812592,0.01704778,66510.0,66497.0,0.150382]
[1721406812767,0.20421013,66509.0,66493.0,0.150391]
[1721406812971,0.22951013,66508.0,66507.0,0.001]
[1721406813404,0.22951013,66508.0,66495.0,0.451158]
[1721406813608,0.1505,66508.0,66495.0,0.451158]
[1721406813818,0.1505,66505.0,66485.0,0.94884387]
[1721406814018,0.33741492,66504.0,66483.0,0.300825]
[1721406814315,0.33741492,66504.0,66483.0,0.150412]
[1721406814316,0.2813,66502.0,66483.0,0.150412]
[1721406814520,0.1556,66500.0,66484.0,0.15041]
[1721406814673,0.48171199,66499.0,66480.0,0.300842]
[1721406814873,0.10041199,66498.0,66480.0,0.300842]
[1721406815073,0.18181492,66497.0,66484.0,0.15041]
[1721406815275,0.07902092,66496.0,66484.0,0.15041]
[1721406815976,0.1,66497.0,66487.0,0.150405]
[1721406816221,0.002794,66497.0,66485.0,0.150409]
[1721406816563,0.002794,66497.0,66486.0,0.150407]
[1721406816707,0.1,66498.0,66484.0,0.30082]
[1721406817071,0.1,66498.0,66486.0,0.150407]
[1721406817277,0.002794,66497.0,66486.0,0.150407]
[1721406817480,0.014,66497.0,66487.0,0.001]
[1721406817695,0.014,66496.0,66487.0,0.001]
[1721406817878,0.014,66496.0,66486.0,0.150407]
[1721406818081,0.1,66498.0,66488.0,0.300805]
[1721406818279,0.1,66498.0,66494.0,0.150388]
[1721406818280,0.114,66498.0,66494.0,0.150388]
[1721406818434,0.114,66498.0,66490.0,0.300796]
[1721406818635,0.114,66498.0,66489.0,0.1504]
[1721406818838,0.114,66498.0,66487.0,0.300807]
[1721406818839,0.15353,66498.0,66487.0,0.300807]
[1721406819060,0.114,66498.0,66490.0,0.150398]
[1721406819262,0.114,66498.0,66491.0,0.150395]
[1721406819493,0.014,66498.0,66497.0,0.150382]
[1721406819903,0.16889342,66499.0,66497.0,0.150382]
[1721406820141,0.014,66498.0,66497.0,0.150382]
[1721406820345,0.014,66498.0,66490.0,0.300793]
[1721406820346,0.014,66498.0,66479.0,0.1197]
[1721406820548,0.002794,66497.0,66490.0,0.150397]
[1721406820754,0.16889342,66499.0,66492.0,0.150392]
[1721406820755,0.016794,66498.0,66492.0,0.150392]
[1721406820978,0.014,66498.0,66484.0,0.300823]
[1721406821198,0.002794,66497.0,66491.0,0.001]
[1721406821829,0.02266274,66497.0,66491.0,0.001]
[1721406822074,0.027,66498.0,66491.0,0.001]
[1721406822306,0.083494,66497.0,66484.0,0.150411]
[1721406822520,0.083494,66497.0,66467.0,0.7709]
[1721406822521,0.083494,66497.0,66485.0,0.300819]
[1721406822723,0.013,66498.0,66478.0,0.0796]
[1721406822922,0.002794,66497.0,66493.0,0.150389]
[1721406823122,0.16889342,66499.0,66493.0,0.150389]
[1721406823361,0.014,66497.0,66477.0,0.000924]
[1721406823637,0.002794,66498.0,66486.0,0.150407]
[1721406823988,0.002794,66498.0,66475.0,0.300863]
[1721406823989,0.1587,66495.0,66475.0,0.300863]
[1721406823990,0.1587,66495.0,66478.0,0.150425]
[1721406824193,0.1587,66495.0,66475.0,0.150432]
[1721406824194,0.1563,66493.0,66475.0,0.150432]
[1721406824546,0.150411,66484.0,66475.0,0.150432]
[1721406824744,0.150411,66484.0,66472.0,0.300876]
[1721406825191,0.150411,66484.0,66475.0,0.150431]
[1721406825611,0.150411,66484.0,66476.0,0.150429]
[1721406826019,0.150411,66484.0,66477.0,0.15135]
[1721406826220,0.150411,66484.0,66483.0,0.150414]
[1721406826572,0.150411,66484.0,66482.0,0.150414]
[1721406826812,0.150411,66484.0,66477.0,0.000924]
[1721406826983,0.150411,66484.0,66478.0,0.300851]
[1721406827202,0.150411,66484.0,66483.0,0.150414]
[1721406827412,0.159411,66484.0,66483.0,0.150414]
[1721406827587,0.159411,66484.0,66482.0,0.150416]
[1721406827937,0.150411,66484.0,66483.0,0.150414]
[1721406828152,0.159411,66484.0,66482.0,0.150416]
[1721406828273,0.159411,66484.0,66480.0,0.300841]
[1721406828274,0.157411,66484.0,66481.0,0.300836]
[1721406828474,0.157411,66484.0,66482.0,0.150414]
[1721406828823,0.157411,66484.0,66483.0,0.150414]
[1721406829026,0.157411,66484.0,66483.0,0.451242]
[1721406829251,0.157411,66484.0,66480.0,0.300839]
[1721406829252,0.157411,66484.0,66481.0,0.150417]
[1721406829478,0.157411,66484.0,66482.0,0.150415]
[1721406829690,0.157411,66484.0,66477.0,0.000924]
[1721406829691,0.150411,66484.0,66477.0,0.000924]
[1721406829907,0.154411,66484.0,66477.0,0.000924]
[1721406830099,0.1658521,66484.0,66477.0,0.000924]
[1721406830321,0.150411,66484.0,66477.0,0.151351]
[1721406830492,0.154411,66484.0,66477.0,0.000924]
[1721406830693,0.2359,66483.0,66477.0,0.000924]
[1721406831301,0.2359,66483.0,66471.0,0.150439]
[1721406831515,0.2359,66483.0,66471.0,0.150441]
[1721406831516,0.002794,66482.0,66471.0,0.150441]
[1721406831864,0.002794,66482.0,66469.0,0.300888]
[1721406831865,0.002794,66482.0,66472.0,0.150438]
[1721406832112,0.002794,66482.0,66470.0,0.300883]
[1721406832113,0.002794,66482.0,66471.0,0.15044]
[1721406832521,0.002794,66482.0,66473.0,0.150436]
[1721406832664,0.002794,66482.0,66471.0,0.37805379]
[1721406832883,0.18019224,66484.0,66483.0,0.451242]
[1721406832884,0.16319224,66484.0,66483.0,0.451242]
[1721406833122,0.16319224,66484.0,66483.0,0.90645174]
[1721406833320,0.16319224,66484.0,66483.0,1.28967974]
[1721406833891,0.16319224,66484.0,66483.0,1.59050774]
[1721406834105,0.16719224,66484.0,66483.0,1.59050774]
[1721406834367,0.16719224,66484.0,66483.0,1.64050774]
[1721406834482,1e-08,66484.0,66483.0,1.59050774]
[1721406834690,1e-08,66484.0,66483.0,1.64050774]
[1721406835090,0.57074871,66507.0,66490.0,0.05]
[1721406835091,0.002794,66504.0,66490.0,0.05]
[1721406835318,0.46304871,66507.0,66505.0,0.451093]
[1721406835319,0.002794,66506.0,66505.0,0.451093]
[1721406835527,0.01258066,66507.0,66506.0,0.150362]
[1721406835741,0.4811,66512.0,66510.0,0.150351]
[1721406835941,0.4811,66512.0,66511.0,0.150351]
[1721406836566,0.49387997,66512.0,66511.0,0.150351]
[1721406836788,0.01277997,66512.0,66511.0,0.451053]
[1721406836940,0.0809,66519.0,66511.0,0.601404]
[1721406836941,0.1027,66518.0,66511.0,0.601404]
[1721406837142,0.07903331,66517.0,66516.0,0.150339]
[1721406837345,0.07903331,66517.0,66516.0,0.451018]
[1721406837649,0.1027,66518.0,66517.0,0.150337]
[1721406837891,0.18172318,66518.0,66517.0,0.150337]
[1721406838097,0.18172318,66518.0,66515.0,0.15034]
[1721406838355,0.011,66517.0,66516.0,0.001]
[1721406838706,0.011,66517.0,66507.0,0.300719]
[1721406838707,0.011,66517.0,66511.0,0.15035]
[1721406838928,0.002794,66516.0,66511.0,0.15035]
[1721406839186,0.011,66517.0,66514.0,0.300688]
[1721406839332,0.011,66517.0,66515.0,0.150342]
[1721406839536,0.023,66517.0,66516.0,0.150339]
[1721406839895,0.07902092,66517.0,66516.0,0.150339]
[1721406840236,0.1027,66518.0,66517.0,0.150337]
[1721406840237,0.012,66518.0,66517.0,0.150337]
[1721406840441,0.012,66518.0,66517.0,0.751687]
[1721406840655,0.01287256,66519.0,66517.0,0.751687]
[1721406840656,0.01287256,66519.0,66518.0,0.451005]
[1721406840862,0.3755,66526.0,66525.0,0.150319]
[1721406841066,0.3755,66526.0,66525.0,0.450957]
[1721406841268,0.38822157,66526.0,66525.0,0.751595]
[1721406842469,0.38822157,66526.0,66525.0,1.052233]
[1721406842684,0.38822157,66526.0,66525.0,0.751595]
[1721406843483,0.38922157,66526.0,66525.0,0.751595]
[1721406843890,0.38922157,66526.0,66525.0,1.39051474]
[1721406843891,0.01272157,66526.0,66525.0,1.39051474]
[1721406844086,0.01372157,66526.0,66525.0,1.39051474]
[1721406844296,0.001,66526.0,66525.0,1.69115274]
[1721406844496,0.1037,66546.0,66535.0,1.052075]
[1721406844735,0.01352913,66536.0,66535.0,1.052075]
[1721406845012,0.00084,66536.0,66535.0,1.052075]
[1721406845363,0.00084,66536.0,66535.0,0.751482]
[1721406846583,0.00484,66536.0,66535.0,0.751482]
[1721406847285,0.00584,66536.0,66535.0,0.751482]
[1721406847691,0.00084,66536.0,66535.0,0.752482]
[1721406849035,0.002794,66535.0,66528.0,0.300623]
[1721406849237,0.00084,66536.0,66535.0,0.150296]
[1721406849238,0.01366913,66536.0,66535.0,0.150296]
[1721406849556,0.00084,66536.0,66535.0,0.450889]
[1721406849757,0.00484,66536.0,66535.0,1.052075]
[1721406850195,0.00084,66536.0,66535.0,1.052075]
[1721406850636,0.00584,66536.0,66535.0,1.053075]
[1721406851123,0.00084,66536.0,66535.0,1.052075]
[1721406851427,0.00084,66536.0,66535.0,1.056075]
[1721406852265,0.00184,66536.0,66535.0,1.056075]
[1721406852688,0.00184,66536.0,66535.0,1.052075]
[1721406852887,0.00084,66536.0,66535.0,1.052075]
[1721406853089,0.00184,66536.0,66535.0,1.058075]
[1721406853497,0.00084,66536.0,66535.0,1.052075]
[1721406853895,0.01348653,66536.0,66535.0,1.64684974]
[1721406854107,0.00084,66536.0,66535.0,1.99664274]
[1721406854327,0.00084,66536.0,66535.0,2.09664274]
[1721406855304,0.01254125,66544.0,66543.0,1.352506]
[1721406855492,0.1,66555.0,66554.0,0.150253]
[1721406855686,0.11258565,66555.0,66554.0,1.051774]
[1721406856270,0.01258565,66555.0,66554.0,1.132874]
[1721406856466,0.00837,66556.0,66555.0,0.751257]
[1721406856673,0.00837,66556.0,66555.0,1.20614174]
[1721406856870,0.02094677,66556.0,66555.0,1.50664474]
[1721406857071,0.02094677,66556.0,66555.0,1.55664474]
[1721406857272,0.02094677,66556.0,66555.0,1.50664474]
[1721406858423,0.03224539,66556.0,66546.0,0.30054]
[1721406858631,0.03224539,66556.0,66536.0,0.0837]
[1721406858632,0.0818,66554.0,66536.0,0.0837]
[1721406858837,0.0818,66554.0,66537.0,0.15438174]
[1721406858838,0.002794,66553.0,66537.0,0.15438174]
[1721406859035,0.002794,66553.0,66545.0,0.300547]
[1721406859269,0.025794,66553.0,66546.0,0.150271]
[1721406859575,0.125794,66553.0,66546.0,0.150271]
[1721406859696,0.125794,66553.0,66544.0,0.300548]
[1721406859897,0.125794,66553.0,66547.0,0.150268]
[1721406860192,0.125794,66553.0,66545.0,0.150273]
[1721406860365,0.125794,66553.0,66546.0,0.150271]
[1721406860618,0.132794,66553.0,66546.0,0.12740373]
[1721406860788,0.132794,66553.0,66547.0,0.150268]
[1721406860943,0.129794,66553.0,66547.0,0.150268]
[1721406861145,0.106794,66553.0,66537.0,0.15438174]
[1721406861352,0.106794,66553.0,66552.0,0.450774]
[1721406861353,0.006794,66553.0,66552.0,0.450774]
[1721406861706,0.004,66553.0,66552.0,0.450774]
[1721406861935,0.004,66553.0,66552.0,0.150258]
[1721406862139,0.004,66553.0,66552.0,0.450774]
[1721406862140,0.008,66553.0,66552.0,0.450774]
[1721406862342,0.008,66553.0,66552.0,0.75129]
[1721406862631,0.12094677,66556.0,66555.0,1.05176]
[1721406862831,0.02094677,66556.0,66555.0,1.05176]
[1721406864044,0.02294677,66556.0,66555.0,1.05176]
[1721406864642,0.02294677,66556.0,66555.0,1.50664474]
[1721406864842,0.02294677,66556.0,66555.0,1.61424474]
[1721406865237,0.02094677,66556.0,66555.0,1.61424474]
[1721406865619,0.02094677,66556.0,66555.0,1.61624474]
[1721406865819,0.02094677,66556.0,66555.0,1.61424474]
[1721406866241,0.02094677,66556.0,66555.0,1.61924474]
[1721406866242,0.02194677,66556.0,66555.0,1.61924474]
[1721406866849,0.02194677,66556.0,66555.0,2.29965074]
[1721406867025,0.07575138,66560.0,66559.0,0.801212]
[1721406867230,0.07575138,66560.0,66559.0,0.98499374]
[1721406867430,0.07575138,66560.0,66559.0,1.28547874]
[1721406867631,0.07575138,66560.0,66559.0,1.58596374]
[1721406868610,0.07675138,66560.0,66559.0,1.59796374]
[1721406868792,0.07775138,66560.0,66559.0,1.60896374]
[1721406868991,0.07675138,66560.0,66559.0,1.58596374]
[1721406869338,0.07875138,66560.0,66559.0,1.30847874]
[1721406869528,0.07675138,66560.0,66559.0,1.29747874]
[1721406869963,0.07775138,66560.0,66559.0,1.30847874]
[1721406870162,0.07775138,66560.0,66559.0,1.29747874]
[1721406870435,0.07593262,66569.0,66568.0,0.450666]
[1721406870609,0.07593262,66569.0,66568.0,0.150222]
[1721406870826,0.07593262,66569.0,66568.0,0.450666]
[1721406871783,0.07693262,66569.0,66568.0,0.456666]
[1721406872200,0.07593262,66569.0,66568.0,0.450666]
[1721406872604,0.07593262,66569.0,66568.0,0.452666]
[1721406872960,0.07593262,66569.0,66568.0,0.453666]
[1721406873199,0.07593262,66569.0,66568.0,0.303444]
[1721406873513,0.15939999,66569.0,66556.0,0.94884387]
[1721406873645,0.07566504,66567.0,66565.0,0.150228]
[1721406873842,0.07541472,66565.0,66564.0,0.150231]
[1721406874046,0.07541472,66565.0,66564.0,0.450693]
[1721406874249,0.07577729,66568.0,66566.0,0.300452]
[1721406874444,0.08350308,66567.0,66566.0,0.450678]
[1721406874670,0.15916812,66567.0,66566.0,0.450678]
[1721406874870,0.15916813,66567.0,66566.0,0.450678]
[1721406875071,0.15916813,66567.0,66566.0,0.150226]
[1721406875294,0.08034404,66567.0,66566.0,0.450678]
[1721406875497,0.07577729,66568.0,66566.0,0.450678]
[1721406875821,0.07566504,66567.0,66566.0,0.450678]
[1721406876114,0.08034394,66567.0,66566.0,0.450678]
[1721406876255,0.08034394,66567.0,66557.0,0.15438174]
[1721406876256,0.16426877,66567.0,66557.0,0.15438174]
[1721406876460,0.07541472,66565.0,66564.0,0.450693]
[1721406876656,0.07577729,66568.0,66567.0,0.300449]
[1721406876859,0.07577729,66568.0,66567.0,0.450673]
[1721406877110,0.16438029,66568.0,66567.0,0.751122]
[1721406878175,0.17019372,66568.0,66567.0,0.751122]
[1721406878730,0.17019372,66568.0,66567.0,0.40301301]
[1721406879152,0.17223446,66568.0,66567.0,0.40301301]
[1721406879635,0.17223446,66568.0,66567.0,0.64349475]
[1721406879636,0.07777729,66568.0,66567.0,0.64349475]
[1721406879833,0.07777729,66568.0,66567.0,0.125364]
[1721406880143,0.07777729,66568.0,66567.0,0.425813]
[1721406880387,0.09537379,66568.0,66567.0,0.726262]
[1721406880592,0.18394919,66568.0,66567.0,0.726262]
[1721406880851,0.18294919,66568.0,66559.0,0.0861]
[1721406881100,0.07556499,66566.0,66564.0,0.15023]
[1721406881307,0.07538693,66564.0,66561.0,0.300475]
[1721406881474,0.1061719,66565.0,66561.0,0.124806]
[1721406881475,0.07586359,66562.0,66561.0,0.124806]
[1721406881677,0.18203549,66562.0,66561.0,0.124806]
[1721406881891,0.18203549,66562.0,66561.0,0.425282]
[1721406882293,0.18211398,66562.0,66561.0,0.425282]
[1721406882695,0.18311398,66562.0,66561.0,0.431282]
[1721406882901,0.18411398,66562.0,66561.0,0.312476]
[1721406883476,0.18411398,66562.0,66561.0,0.41564301]
[1721406883673,0.18411398,66562.0,66554.0,0.300504]
[1721406884036,0.07505463,66560.0,66558.0,0.150244]
[1721406884208,0.07551497,66558.0,66557.0,0.150246]
[1721406884417,0.18176536,66558.0,66557.0,0.150246]
[1721406885453,0.18187184,66558.0,66556.0,0.150248]
[1721406885662,0.18187184,66558.0,66556.0,0.30462974]